Cogmind - Beta 17 @@@ ROGUE MODE // 2026.06.27 @ 17:07:55 Player: Conan0LM Result: Destroyed self with Rocket Launcher Performance ------------- Evolutions (0) 0 Regions Visited (2) 400 Robots Destroyed (31) 155 Value Destroyed (857) 857 Prototype IDs (3) 60 Alien Tech Used (0) 0 Bonus (0) 0 TOTAL SCORE: 1472 Bonus ------- None Cogmind --------- Core Integrity 0/250 Matter 150/300 Energy 160/160 System Corruption 0% Temperature Cool (0) Movement Rolling (105) Ox1 Location -10/Subcaves Parts ------- > --- POWER (1) -------- Light Nuclear Core > --- PROPULSION (2) --- Armored Wheel Armored Wheel > --- UTILITY (2) ------ Scrap Shield > --- WEAPON (2) ------- Rocket Launcher Rocket Launcher > --- INVENTORY (5) ---- Ion Engine Armored Wheel Armored Wheel Grenade Launcher Peak State ------------ > --- POWER ------------ Light Nuclear Core > --- PROPULSION ------- Armored Wheel Armored Wheel > --- UTILITY ---------- Core Shielding Makeshift Thermal Plating > --- WEAPON ----------- Rocket Launcher Rocket Launcher > --- INVENTORY -------- Ion Engine Armored Wheel Armored Wheel Grenade Launcher Rocket Launcher [Rating: 16] Favorites ----------- Power Light Nuclear Core Engine Ion Engine Power Core Light Nuclear Core Propulsion Armored Wheel Leg Aluminum Leg Wheel Armored Wheel Utility Medium Storage Unit Device Shield Generator Storage Medium Storage Unit Protection Core Shielding Weapon Rocket Launcher Energy Gun Medium Laser Ballistic Gun Assault Rifle Launcher Rocket Launcher Build | -11 -10 -10 ------- Run | Yrd Mat Sub Slots Evolved . | . . . Power . | . . . Propulsion . | . . . Utility . | . . . Weapon . | . . . Parts Attached 22 | 5 11 6 Power 2 | 1 1 . Engine 1 | 1 . . Core 1 | . 1 . Reactor . | . . . Propulsion 6 | 2 3 1 Treads . | . . . Leg 3 | 2 1 . Wheel 3 | . 2 1 Hover . | . . . Flight . | . . . Utility 7 | . 4 3 Device 1 | . 1 . Storage 1 | . 1 . Processor . | . . . Hackware . | . . . Protection 5 | . 2 3 Artifact . | . . . Weapon 7 | 2 3 2 Energy Gun 1 | 1 . . Energy Cannon . | . . . Ballistic Gun 2 | 1 1 . Ballistic Cannon . | . . . Launcher 4 | . 2 2 Special Weapon . | . . . Impact Weapon . | . . . Slashing Weapon . | . . . Piercing Weapon . | . . . Special Melee Weapon . | . . . Unidentified Prototypes . | . . . Parts Lost 2 | . . 2 Power . | . . . Propulsion . | . . . Utility . | . . . Weapon 2 | . . 2 Highest Loss Streak 1 | . . 1 To Critical Strikes . | . . . Average Backups 6 | 1 7 5 Power 1 | . 1 1 Propulsion 1 | . 1 2 Utility . | . . . Weapon 3 | . 4 2 Tool/Special . | . . . Unused Backups 4 | . 1 3 Power 1 | . . 1 Propulsion 1 | . . 1 Utility 1 | . 1 . Weapon 1 | . . 1 Tool/Special . | . . . Average Slot Usage (%) 95 | . 94 95 Engine 2 | . 5 . Core 11 | . 8 14 Leg 5 | . 13 . Wheel 22 | . 14 28 Device 1 | . 4 . Storage 6 | . 11 3 Protection 14 | . 7 20 Energy Gun 6 | . 14 . Ballistic Gun 6 | . 14 . Launcher 15 | . . 28 Peak Build Rating 16 | 5 14 16 Average Rating 12 | 3 10 15 On Entrance 6 | . 5 14 Avg Prop Armor Cover (%) 18 | . 18 . Naked Turns . | . . . Heaviest Build 31 | 9 26 31 Greatest Support 24 | 20 24 24 Greatest Overweight (x) 2 | . 2 1 Average Overweight (x) . | . . . Largest Inventory Capacity 10 | 5 10 10 Average Capacity 7 | 5 9 6 Most Carried 10 | 5 10 10 Average Carried 6 | 1 7 5 Final Capacity 10 | 5 10 5 Final Carried 10 | 2 10 4 Class Distribution -------------------- 100% | Mutant Dominant Class ---------------- Mutant | -10/Materials Mutant | -10/Subcaves Resources | -11 -10 -10 ----------- Run | Yrd Mat Sub Matter Collected 942 | 250 201 491 Remotely . | . . . Salvage Created 768 | . 439 329 Parts 69 | . 29 40 Haulers Intercepted 2 | . 2 . Recyclers Shooed . | . . . Parts Field Recycled . | . . . Retrieved Matter . | . . . Parts Self-Destructed 3 | . . 3 Prevented . | . . . Parts Restored . | . . . Kills | -11 -10 -10 ------- Run | Yrd Mat Sub Combat Hostiles Destroyed 26 | . 10 16 Guns 10 | . 10 . AOE 16 | . . 16 Classes Destroyed 7 | . 4 3 Hauler 2 | . 2 . Turret 2 | . . 2 Watcher 1 | . 1 . Swarmer 8 | . 4 4 Grunt 6 | . 6 . Artisan 2 | . . 2 Subdweller 12 | . . 12 Best Kill Streak 6 | . 5 6 Combat Bots Only 4 | . 3 4 Max Kills in Single Turn 2 | . 1 2 Gunslinging . | . . . Exploded 2 | . . 2 Melee . | . . . Uniques/NPCs Destroyed . | . . . Combat | -11 -10 -10 -------- Run | Yrd Mat Sub Hostile Shots Fired 99 | . 53 46 Missed 27 | . 11 16 Hits 72 | . 42 30 Projectile 72 | . 42 30 Critical Strikes 1 | . 1 . Part Disruptions 4 | . 4 . Damage Taken 1181 | . 479 702 Core 257 | . 135 122 Absorbed by Shields 39 | . 39 . Redirected to Shielding 20 | . . 20 Ignored by Resistances 10 | . . 10 Core Remaining (%) 100 | 100 . . Volleys Fired 66 | . 37 29 Largest 2 | . 2 2 Hottest 70 | . 70 66 Shots Fired 122 | . 71 51 Gun 71 | . 71 . Cannon . | . . . Launcher 51 | . . 51 Special . | . . . Kinetic 37 | . 37 . Thermal 34 | . 34 . Explosive 51 | . . 51 Electromagnetic . | . . . Robot Hit Streak 9 | . 5 9 Robot Miss Streak 3 | . 3 2 Penetration Max . | . . . Secondary Targets . | . . . Shots Hit Robots 61 | . 40 21 Core Hits 49 | . 20 29 Critical Kills . | . . . Critical Parts Destroyed . | . . . Critical Strikes 2 | . 2 . Burn 2 | . 2 . Melee Attacks . | . . . Impact . | . . . Slashing . | . . . Piercing . | . . . Sneak Attacks . | . . . Combat Hostiles . | . . . Follow-up Attacks . | . . . Damage Inflicted 2420 | . 516 1904 Guns 516 | . 516 . Cannons . | . . . Explosions 1904 | . . 1904 Melee . | . . . Ramming . | . . . Kinetic 304 | . 304 . Thermal 212 | . 212 . Explosive 1904 | . . 1904 Electromagnetic . | . . . Impact . | . . . Slashing . | . . . Piercing . | . . . Highest Corruption . | . . . Average Corruption . | . . . Corruption Purged . | . . . Corruption Blocked . | . . . Overload Shots . | . . . Overflow Damage 19 | . . 19 Projectiles . | . . . Explosions 19 | . . 19 Melee . | . . . Knockbacks . | . . . Impact . | . . . Kinetic . | . . . Secondary . | . . . Self-Inflicted Damage 216 | . . 216 Shots 8 | . . 8 Rammed . | . . . Targets Rammed . | . . . Kicked . | . . . Crushed . | . . . Highest Temperature 120 | . 120 20 Average Temperature 42 | . 42 12 Received Heat Transfer 308 | . 173 135 Siege Activations . | . . . Martial Activations . | . . . Shielding Activations . | . . . Robots Disrupted . | . . . Combat Hostiles . | . . . Robots Corrupted . | . . . Combat Hostiles . | . . . Parts Fried . | . . . Impact Corruptions . | . . . Robots Melted . | . . . Combat Hostiles . | . . . Parts Melted 2 | . 2 . Heat Transferred 777 | . 777 . Parts Sabotaged . | . . . Parts Stolen . | . . . Parts Stripped . | . . . Power Chain Reactions . | . . . Alert | -11 -10 -10 ------- Run | Yrd Mat Sub Maximum Alert Level . | . . . Low Security (%) 100 | 100 100 . Level 1 . | . . . Level 2 . | . . . Level 3 . | . . . Level 4 . | . . . Level 5 . | . . . High Security . | . . . Max Security . | . . . Peak Influence 74 | . 74 . Initial . | . . . Average 21 | . 22 . Influence Increases 509 | . 299 210 Destroy 0b10 Robot/C 320 | . 200 120 Destroy 0b10 Robot/NC 15 | . 15 . Destroy Leader 46 | . 46 . Successful Hack 21 | . 21 . Destroy Structure 2 | . 2 . Lose Combat Pursuer 105 | . 15 90 Influence Decreases 509 | . 299 210 Time Decay 499 | . 299 200 Lost Part 10 | . . 10 Squads Dispatched 1 | . 1 . Investigation . | . . . Extermination . | . . . Reinforcement 1 | . 1 . Assault . | . . . Garrison . | . . . Intercept . | . . . Searches Triggered . | . . . Construction Impeded . | . . . Haulers Reinforced . | . . . Active Scanning Responses . | . . . Cargo Convoy Interrupts . | . . . Stealth | -11 -10 -10 --------- Run | Yrd Mat Sub Distress Signals 3 | . 3 . Communications Jammed . | . . . Distress Signals . | . . . Times Spotted 38 | . 21 17 Peak Tracking Total 7 | . 7 3 Tactical Retreats 2 | . 1 1 Traps | -11 -10 -10 ------- Run | Yrd Mat Sub Traps Triggered 2 | . 1 1 Indirectly . | . . . Trap Hack Attempts . | . . . Triggered . | . . . Disarmed . | . . . Reprogrammed . | . . . Reused . | . . . Traps Extracted . | . . . Installed . | . . . Triggered . | . . . Machines | -11 -10 -10 ---------- Run | Yrd Mat Sub Machines Disabled 2 | . . 2 Max in Single Turn 1 | . . 1 Machines Repaired . | . . . Machines Dismantled . | . . . Machines Sabotaged . | . . . Overloaded Fab Kills . | . . . Hacking | -11 -10 -10 --------- Run | Yrd Mat Sub Machines Accessed 5 | . 5 . Terminals 4 | . 4 . Fabricators . | . . . Repair Stations 1 | . 1 . Recycling Units . | . . . Scanalyzers . | . . . Garrison Access . | . . . Total Hacks 15 | . 15 . Successful 8 | . 8 . Failed 7 | . 7 . Catastrophic . | . . . Database Lockouts . | . . . Manual 23 | . 23 . Terminals 12 | . 12 . Fabricators . | . . . Repair Stations 3 | . 3 . Recycling Units . | . . . Scanalyzers . | . . . Garrison Access . | . . . Terminal Hacks 5 | . 5 . Robot Analysis 2 | . 2 . Prototype ID Bank 2 | . 2 . Emergency Access Points 1 | . 1 . Fabricator Hacks . | . . . Repair Station Hacks 1 | . 1 . Scan Component 1 | . 1 . Recycling Unit Hacks . | . . . Scanalyzer . | . . . Garrison Access Hacks . | . . . Unauthorized Hacks 2 | . 2 . Terminals 2 | . 2 . Botnet 2 | . 2 . Fabricators . | . . . Repair Stations . | . . . Recycling Units . | . . . Scanalyzers . | . . . Garrison Access . | . . . Data Cores Recovered . | . . . Used . | . . . Hacking Detections 5 | . 5 . Full Trace Events 1 | . 1 . Feedback Events . | . . . Feedback Blocked . | . . . Robot Schematics Acquired . | . . . Robots Built . | . . . Authchips . | . . . Time . | . . . Total Robot Build Rating . | . . . Part Schematics Acquired . | . . . Parts Built . | . . . Authchips . | . . . Time . | . . . Total Part Build Rating . | . . . Part Studies Acquired . | . . . Parts Repaired . | . . . Time . | . . . Parts Recycled . | . . . Recycled Matter . | . . . Retrieved Matter . | . . . Retrieved Components . | . . . Parts Scanalyzed . | . . . Part Schematics Acquired . | . . . Parts Damaged . | . . . Bothacking | -11 -10 -10 ------------ Run | Yrd Mat Sub Used RIF Installer . | . . . Robots Hacked . | . . . Non-combat . | . . . Combat . | . . . Robot Hacks Applied . | . . . Relay Couplers Released . | . . . Fabnet Peak Effective % . | . . . Robots Rewired . | . . . Allies Hacked . | . . . Hacks Repelled . | . . . Allies | -11 -10 -10 -------- Run | Yrd Mat Sub Total Allies . | . . . Largest Group . | . . . Highest-Rated Group . | . . . Highest-Rated Ally . | . . . Total Orders . | . . . Ally Attacks . | . . . Total Damage . | . . . Kills . | . . . Allies Corrupted . | . . . Allies Melted . | . . . Intel | -11 -10 -10 ------- Run | Yrd Mat Sub Active Infowar (turns) . | . . . Robot Analysis Total 2 | . 2 . Derelict Logs Recovered 1 | . . 1 Drone Launches . | . . . Drone Recoveries . | . . . Exploration | -11 -10 -10 ------------- Run | Yrd Mat Sub Turns Passed 2365 | 56 1040 1269 Spaces Moved 1912 | 52 692 1168 Core 34 | 25 9 . Treads . | . . . Legs 263 | 27 236 . Wheels 1615 | . 447 1168 Hover . | . . . Flight . | . . . Fastest Speed 50 | 50 90 90 Average Speed 104 | 86 122 94 Slowest Speed 190 | 120 190 105 Overloaded Moves . | . . . Propulsion Burnouts . | . . . Robots Hopped . | . . . Potential Cave-ins . | . . . Cave-ins Triggered . | . . . Exploration Rate (%) 55 | 4 99 62 Regions Visited 2 Branch Regions 1 Pre-discovered Areas 1 | . . 1 Known Exits Taken . | . . . Unknown Exits Taken 2 | 1 1 . Scrap Searched 6 | . . 6 Spaces Dug . | . . . Terrain Destroyed 298 | . . 298 Melee . | . . . Projectile . | . . . AOE 298 | . . 298 Terrain Rammed . | . . . Walls Destroyed . | . . . Machines Disabled . | . . . Actions | -11 -10 -10 --------- Run | Yrd Mat Sub Total 2158 | 62 814 1282 Wait 118 | . 52 66 Move 1910 | 51 691 1168 Hop . | . . . Pick Up 20 | 6 14 . Fast Attach 7 | 1 3 3 Attach 8 | 4 2 2 Detach . | . . . Swap 8 | . 6 2 Drop 17 | . 9 8 Fire 66 | . 37 29 Melee . | . . . Ram . | . . . Kick . | . . . Crush . | . . . Escape Stasis . | . . . Rewire . | . . . Trap . | . . . Miscellaneous 4 | . . 4 Route ------- -11/Scrapyard -10/Materials (discovered 5 exits: [*Mat x3] / [*Min] / [*Sub]) -10/Subcaves (discovered 2 exits: [*Mat] / [*Rec]) History --------- Turn | Location | Event 14 | -11/Scrapyard | Discovered new exit (range 15) 57 | -11/Scrapyard | Entered Materials 253 | -10/Materials | Discovered new exit (range 13) 315 | -10/Materials | Build established: Mutant 390 | -10/Materials | Discovered new exit (range 16) 628 | -10/Materials | Discovered new exit (range 4) 863 | -10/Materials | Core integrity fell below 50% 924 | -10/Materials | Discovered new exit (range 16) 1053 | -10/Materials | Discovered new exit (range 4) 1097 | -10/Materials | Entered Subcaves 1101 | -10/Subcaves | Ambushed by Subdwellers from Twisted Machinery 1179 | -10/Subcaves | Learned location of Mines (-9) 1262 | -10/Subcaves | Discovered new exit (range 13) 1316 | -10/Subcaves | Core integrity fell below 20% 1372 | -10/Subcaves | Ambushed by Subdweller buried in earth 1418 | -10/Subcaves | Ambushed by Subdweller buried in earth 1461 | -10/Subcaves | A swath of the cavern ceiling suddenly collapsed 1588 | -10/Subcaves | Ambushed by Subdweller buried in earth 1643 | -10/Subcaves | Discovered new exit (range 10) 2169 | -10/Subcaves | A swath of the cavern ceiling suddenly collapsed 2366 | -10/Subcaves | Destroyed self with Rocket Launcher Last Messages --------------- Found Scrap Shield. Found 30 Matter. Acquired 30 matter. Dropped Mak. Thermal Plating. Dropped Core Shielding. Acquired Scrap Shield. Scrap Shield Fragment affixed to Scrap Shield (+29). Subatomizers dissect the Sub. Optics, destroying it. Scrap Shield Fragment affixed to Scrap Shield (+3). YD-ABG(z): "She is not going to be happy we haven't found any suitable candidates yet." A swath of the cavern ceiling suddenly collapses. Scrap Shield Fragment affixed to Scrap Shield (+6). Scrap Shield Fragment affixed to Scrap Shield (+42). Map ----- +----------------------------------------------------+ | ?????????????????????????????????????????##"""#??? | | ?????????????????????????????????????????##" ##??? | | ??????????????????????????????????????????##"##??? | | ???????????????????????????????????????????## ##?? | | ????????????????????????????????????????????## #?? | | ?????????????????????????????????????????????# #?? | | ????????????????????????????????????????????## #?? | | ????????????????????????????????????????????# #?? | | ????????????????????????????????????????????# ##?? | | #???????????????????????????????????????????# #??? | | ???????????????????????????????????????????# #??? | | ???????????????????????????????????????????# #??? | | ???????????????????????????????????????????# #??? | | ????????????????????????????????????????????# #??? | | #???????????????????????????????????????????# #??? | | ?????????????????????????????###???????#????# ##?? | | ?????????????????????????????# ######? #????## #?? | | #???????????????????????????## ## #""##????# ### | | #???????????????????????????# #? " ###??## ## | | ?????????????????????????#### # # " #??## | | ##???????????????#???????## [ ""# " ### ## | | #?????#?????????? ??????# = " " #???# # | | #???? ##????????? #????## # # " ##???# | | ####? #?????????? #??## # # ######????# | | ## ## ##???????### ### ## # #??????# # | | #??????## ## # @#### ####???## | | ##????## [# ?### #??## | | ##???# ! # # #?### ##?## ### | | #???## &R ###?# # #* ![ #### ##?? | | ### ##????# & # ###### "## "" #??? | | ##???###?????# & ## "" ### # #??? | | ##??????####?# ## " "# # ###??? | | ###?#### ### ## #??? | | ### ##[* #### " ##??? | | ## ! ##?# # # ##?# | | ## ##??# ### ##### ## | | ## #####???## # # #???# | | ## #???????# ##"" "## #???# | | ##?????### ##"#"### #?### | | #????## ####"#?# #### | | ## ##?#### #?####?# # # # | | ######### ##??# ## #?# # | | ##???????####???# ## ?# # ## | | #???????????????#### # ?####### ## | | ##?????????????????## ##" ???????# ####### | | ##??????????????????### "####" ???????# ##????? | | ??????????????????????##""#?? #???????# #????? | | ???????????????????????####?? ##????????# ##???? | | ?????????????????????????????#??????????## ##??? | | ?????????????????????????????????????????## ##?? | +----------------------------------------------------+ Best States ------------- Heat Dissipation 25 Energy Generation 14 Energy Capacity 250 Matter Stores 300 Matter Capacity 300 Sight Range 16 Terrain Scan Density 10 Armor Coverage 800 Resistance: TH 10 Core Shielding 20 Evasion (%) 55 Item Schematics ----------------- None Robot Schematics ------------------ None Fabricated ------------ Nothing Repaired ---------- Nothing Studied --------- None Alien Tech Used ----------------- None Achievements -------------- None Challenges ------------ None Game ------ Seed CobblerFrostInsulator Manual? 0 Play Time 00:21:11 Cumulative 68.8 hours Start 2026.06.25 @ 16:12:35 End 2026.06.27 @ 17:07:55 Sessions 5 Manual Loads 0 Difficulty Rogue Special Mode None Game No. 108 Rogue 74 Adventurer 34 Explorer 0 Win Type - Total 2 Types 1/0/0/1/0/0/0/0/0/0 Lore% 49 Gallery% 50 Achievement% 46 Wizard Run 0 Options --------- Layout 1 ASCII 0 Keyboard 0 Movement Mouse Keybinds 0 Fullscreen 1 Font 48/Smallcaps Map View 50x35 Zoom Use 0% Tactical HUD 0 Map Filters NONE Filters NONE Steam 1 RUN: 047a85f0-823d-4baa-bb91-269684e46663